bitfinex/quotes_BTCUSD_20250422
["timestamp","ask_amount","ask_price","bid_price","bid_amount"]
[1745349257575,0.12496499,91592.0,91587.0,0.00046274]
[1745349257903,0.11375594,91591.0,91587.0,0.00146274]
[1745349258899,0.11375594,91591.0,91587.0,0.00046274]
[1745349259120,0.11375594,91591.0,91589.0,0.001]
[1745349259754,0.11375594,91591.0,91587.0,0.00046274]
[1745349259993,0.11775594,91591.0,91587.0,0.00146274]
[1745349260379,0.12175594,91591.0,91587.0,0.00146274]
[1745349260603,0.11775594,91591.0,91587.0,0.00046274]
[1745349260801,0.11375594,91591.0,91589.0,0.001]
[1745349261115,0.12075594,91591.0,91589.0,0.001]
[1745349261729,0.21836445,91590.0,91589.0,0.001]
[1745349261874,0.68666124,91590.0,91589.0,0.001]
[1745349262081,0.68666124,91590.0,91587.0,0.00046274]
[1745349262082,0.55836921,91588.0,91587.0,0.00046274]
[1745349262308,0.55836921,91588.0,91587.0,0.00146274]
[1745349262309,1.098666,91588.0,91587.0,0.00146274]
[1745349262734,1.21241805,91588.0,91587.0,0.00046274]
[1745349262958,1.42321805,91588.0,91587.0,0.00046274]
[1745349263364,1.76137464,91588.0,91587.0,0.00046274]
[1745349263572,0.01092108,91566.0,91552.0,0.000848]
[1745349263789,0.045,91567.0,91552.0,0.00131131]
[1745349263790,0.11375594,91564.0,91552.0,0.00131131]
[1745349264282,0.12467726,91564.0,91552.0,0.00131131]
[1745349264525,0.11375594,91563.0,91552.0,0.00131131]
[1745349264802,0.28233534,91567.0,91552.0,0.00131131]
[1745349264803,0.11375594,91555.0,91552.0,0.00131131]
[1745349265043,0.73594948,91553.0,91552.0,0.00131131]
[1745349266417,0.73694948,91553.0,91552.0,0.00131131]
[1745349266902,0.73594948,91553.0,91552.0,0.00231131]
[1745349267136,0.73894948,91553.0,91552.0,0.00231131]
[1745349267598,0.74094948,91553.0,91552.0,0.00231131]
[1745349268143,1.15294948,91553.0,91552.0,0.00231131]
[1745349270366,1.26670153,91553.0,91552.0,0.00231131]
[1745349270745,1.25294948,91553.0,91552.0,0.00231131]
[1745349271169,1.20374948,91553.0,91552.0,0.00231131]
[1745349271785,1.20374948,91553.0,91552.0,0.00131131]
[1745349272004,1.20074948,91553.0,91552.0,0.00131131]
[1745349272235,1.20574948,91553.0,91552.0,0.00231131]
[1745349272644,1.20374948,91553.0,91552.0,0.00231131]
[1745349272897,1.27708219,91553.0,91552.0,0.00331131]
[1745349274584,1.20874948,91553.0,91552.0,0.00331131]
[1745349275806,1.29870607,91553.0,91552.0,0.00331131]
[1745349276057,1.29870607,91553.0,91547.0,0.0008482]
[1745349276058,0.66799832,91551.0,91547.0,0.0008482]
[1745349276264,0.61800309,91549.0,91547.0,0.0008482]
[1745349276428,0.92599903,91549.0,91548.0,0.00131331]
[1745349276634,1.45175108,91549.0,91548.0,0.00131331]
[1745349277187,1.45175108,91549.0,91547.0,0.0008482]
[1745349277188,0.35454085,91548.0,91547.0,0.0008482]
[1745349277389,0.57302695,91539.0,91537.0,0.0008484]
[1745349277522,1.19298289,91539.0,91538.0,0.00098743]
[1745349277726,1.32073511,91539.0,91538.0,0.00098743]
[1745349277927,1.46116873,91539.0,91538.0,0.00098743]
[1745349278556,1.46116873,91539.0,91500.0,0.0494]
[1745349278557,0.40454085,91536.0,91500.0,0.0494]
[1745349278764,0.40454085,91536.0,91535.0,0.0013111]
[1745349278765,0.56329679,91536.0,91535.0,0.0013111]
[1745349278977,0.61773058,91536.0,91535.0,0.0013111]
[1745349279222,0.56329679,91536.0,91535.0,0.0013111]
[1745349279410,0.67704884,91536.0,91535.0,0.0013111]
[1745349279584,0.68004884,91536.0,91535.0,0.0023111]
[1745349279791,0.89854211,91536.0,91535.0,0.0023111]
[1745349280019,0.89954211,91536.0,91535.0,0.0023111]
[1745349280189,0.90791374,91536.0,91535.0,0.0023111]
[1745349280578,0.79416169,91536.0,91535.0,0.0023111]
[1745349281138,0.89416169,91536.0,91535.0,0.0023111]
[1745349281847,0.84416169,91536.0,91535.0,0.0023111]
[1745349282092,0.89116169,91536.0,91535.0,0.0013111]
[1745349282397,0.89816169,91536.0,91535.0,0.0013111]
[1745349282613,1.42391374,91536.0,91535.0,0.0013111]
[1745349282814,1.37391374,91536.0,91535.0,0.0013111]
[1745349283092,1.42291374,91536.0,91535.0,0.0013111]
[1745349284325,1.43091374,91536.0,91535.0,0.0013111]
[1745349287604,1.43091374,91536.0,91535.0,0.0004635]
[1745349287797,0.0109274,91513.0,91493.0,0.13498793]
[1745349287982,0.11375594,91512.0,91499.0,0.00046104]
[1745349289334,0.12568346,91512.0,91499.0,0.00046104]
[1745349289660,0.12282342,91512.0,91499.0,0.00046104]
[1745349289945,0.12282342,91512.0,91503.0,0.001]
[1745349290176,0.12282342,91512.0,91503.0,0.21957167]
[1745349290380,0.12282342,91512.0,91503.0,0.001]
[1745349290753,0.12282342,91512.0,91504.0,0.094]
[1745349291862,0.12182342,91512.0,91504.0,0.094]
[1745349292024,0.12282342,91512.0,91504.0,0.094]
[1745349292224,0.12382342,91512.0,91504.0,0.094]
[1745349297948,0.12382342,91512.0,91504.0,0.21856875]
[1745349298361,0.12382342,91512.0,91503.0,0.05631225]
[1745349299109,0.12382342,91512.0,91501.0,0.22971604]
[1745349299443,0.12382342,91512.0,91501.0,0.21857485]
[1745349299653,0.12382342,91512.0,91502.0,0.21857411]
[1745349299853,0.12282342,91512.0,91502.0,0.21857411]
[1745349300054,0.12182342,91512.0,91502.0,0.21857411]
[1745349300337,0.12282342,91512.0,91502.0,0.21857417]
[1745349300546,0.12282342,91512.0,91504.0,0.21856733]
[1745349300746,0.12282342,91512.0,91501.0,0.21857477]
[1745349300947,0.12182342,91512.0,91501.0,0.21857684]
[1745349301125,0.12182342,91512.0,91501.0,0.0491]
[1745349301403,0.12382342,91512.0,91501.0,0.0491]
[1745349302104,0.12182342,91512.0,91501.0,0.0491]
[1745349302762,0.12282342,91512.0,91501.0,0.0491]
[1745349302997,0.13375094,91512.0,91501.0,0.0491]
[1745349303219,0.13375094,91512.0,91499.0,0.00046104]
[1745349303431,0.12282342,91512.0,91499.0,0.00046104]
[1745349303848,0.12382342,91512.0,91499.0,0.00046104]
[1745349304266,0.12282342,91512.0,91499.0,0.00046104]
[1745349304708,0.12382342,91512.0,91499.0,0.00046104]
[1745349304933,0.12382342,91512.0,91500.0,0.21857907]
[1745349305843,0.12382342,91512.0,91499.0,0.00046104]
[1745349306053,0.12282342,91512.0,91499.0,0.00046104]
[1745349306482,0.12382342,91512.0,91499.0,0.00046104]
[1745349306725,0.12282342,91512.0,91499.0,0.00046104]
[1745349306958,0.12382342,91512.0,91499.0,0.00046104]
[1745349307404,0.12282342,91512.0,91499.0,0.00046104]
[1745349307636,0.12382342,91512.0,91499.0,0.00046104]
[1745349308133,0.12282342,91512.0,91499.0,0.00046104]
[1745349308559,0.13475094,91512.0,91499.0,0.00046104]
[1745349309295,0.12382342,91512.0,91499.0,0.00046104]
[1745349311910,0.12382342,91512.0,91494.0,0.19150514]
[1745349312148,0.12382342,91512.0,91494.0,0.19196395]
[1745349312355,0.12382342,91512.0,91495.0,0.2185904]
[1745349312882,0.01092908,91499.0,91494.0,0.00045881]
[1745349313206,0.16145594,91498.0,91494.0,0.00045881]
[1745349313410,0.11375594,91498.0,91494.0,0.00045881]
[1745349314571,0.11475594,91498.0,91494.0,0.00045881]
[1745349314777,0.11575594,91498.0,91494.0,0.00045881]
[1745349317680,0.11475594,91498.0,91494.0,0.00045881]
[1745349318116,0.11575594,91498.0,91494.0,0.00045881]
[1745349319205,0.11475594,91498.0,91494.0,0.00045881]
[1745349319525,0.11575594,91498.0,91494.0,0.00045881]
[1745349322717,0.11575594,91498.0,91497.0,0.2185864]
[1745349322935,0.002,91498.0,91497.0,0.26587204]
[1745349323138,0.002,91498.0,91497.0,0.3125864]
[1745349323345,0.002,91498.0,91497.0,0.32340726]
[1745349323546,0.001,91498.0,91497.0,0.32340726]
[1745349323910,0.002,91498.0,91497.0,0.32340726]
[1745349324188,0.003,91498.0,91497.0,0.32340726]
[1745349324391,0.001,91536.0,91530.0,0.2185067]
[1745349324536,0.1,91528.0,91527.0,0.2185132]
[1745349324942,0.1,91528.0,91525.0,0.21851878]
[1745349325344,0.11375594,91527.0,91521.0,0.21852673]
[1745349325724,0.11375594,91527.0,91522.0,0.21852618]
[1745349325924,0.11375594,91527.0,91523.0,0.21852294]
[1745349326120,0.11375594,91527.0,91522.0,0.21852669]
[1745349326321,0.11375594,91527.0,91521.0,0.00045881]
[1745349326955,0.11575594,91527.0,91521.0,0.00045881]
[1745349327489,0.11775594,91527.0,91521.0,0.00045881]
[1745349327919,0.11975594,91527.0,91521.0,0.21898605]
[1745349328073,0.11775594,91527.0,91521.0,0.21898605]
[1745349328516,0.11875594,91527.0,91521.0,0.21998605]
[1745349328965,0.11875594,91527.0,91522.0,0.2185264]
[1745349329369,0.11875594,91527.0,91523.0,0.21852411]
[1745349329568,0.11875594,91527.0,91522.0,0.2185264]
[1745349330262,0.11375594,91527.0,91522.0,0.2185264]
[1745349330689,0.004,91527.0,91526.0,0.21851714]
[1745349330899,0.00802331,91528.0,91527.0,0.21851475]
[1745349331308,0.0008492,91535.0,91531.0,0.21850321]
[1745349331561,0.11460514,91535.0,91531.0,0.21850321]
[1745349331790,0.11460514,91535.0,91533.0,0.21850031]
[1745349331910,0.11460514,91535.0,91527.0,0.21851475]
[1745349331911,0.11460514,91535.0,91530.0,0.21850288]
[1745349332427,0.11460514,91535.0,91525.0,0.3867278]
[1745349332847,0.11460514,91535.0,91530.0,0.21850596]
[1745349333041,0.11660514,91535.0,91530.0,0.21950596]
[1745349333866,0.11660514,91535.0,91531.0,0.21850408]
[1745349334026,0.12667391,91535.0,91531.0,0.21850408]
[1745349334453,0.12467391,91535.0,91531.0,0.21850408]
[1745349334818,0.12567391,91535.0,91531.0,0.21850408]
[1745349335212,0.12567391,91535.0,91532.0,0.21850143]
[1745349335375,0.12467391,91535.0,91532.0,0.05371828]
[1745349335574,0.12267391,91535.0,91532.0,0.05371828]
[1745349335984,0.12567391,91535.0,91532.0,0.05371828]
[1745349336195,0.12767391,91535.0,91532.0,0.05371828]
[1745349336632,0.13167391,91535.0,91532.0,0.001]
[1745349337380,0.12967391,91535.0,91532.0,0.001]
[1745349337782,0.13167391,91535.0,91532.0,0.002]
[1745349338395,0.12967391,91535.0,91532.0,0.001]
[1745349338564,0.12867391,91535.0,91532.0,0.002]
[1745349338728,0.12467391,91535.0,91532.0,0.001]
[1745349339416,0.12767391,91535.0,91532.0,0.002]
[1745349340235,0.01391797,91535.0,91534.0,0.21849804]
[1745349340393,0.01391797,91535.0,91534.0,0.26938277]
[1745349340604,0.01391797,91535.0,91534.0,0.26719804]
[1745349340816,0.01391797,91535.0,91534.0,0.27800945]
[1745349341024,0.01191797,91535.0,91534.0,0.27800945]
[1745349341267,0.01191797,91535.0,91534.0,0.26719804]
[1745349341475,0.01491797,91535.0,91534.0,0.26819804]
[1745349341725,0.01191797,91535.0,91534.0,0.26819804]
[1745349341874,0.01591797,91535.0,91534.0,0.26919804]
[1745349342048,0.01291797,91535.0,91534.0,0.26819804]
[1745349342456,0.01391797,91535.0,91534.0,0.26819804]
[1745349342663,0.01391797,91535.0,91534.0,0.21949804]
[1745349343812,0.01291797,91535.0,91534.0,0.21949804]
[1745349343945,0.01291797,91535.0,91534.0,0.001]
[1745349344146,0.01591797,91535.0,91534.0,0.002]
[1745349344371,0.12967391,91535.0,91534.0,0.002]
[1745349344576,0.12667391,91535.0,91534.0,0.001]
[1745349344896,0.22867391,91535.0,91534.0,0.002]
[1745349345299,0.22267391,91535.0,91521.0,0.00045881]
[1745349345600,0.1,91529.0,91521.0,0.00045881]
[1745349345750,0.01092609,91524.0,91521.0,0.00045881]
[1745349345957,0.11375594,91523.0,91521.0,0.00045881]
[1745349347169,0.11675594,91523.0,91521.0,0.00145881]
[1745349347587,0.11675594,91523.0,91521.0,0.00045881]
[1745349347984,0.11775594,91523.0,91521.0,0.00045881]
[1745349348186,0.12870304,91523.0,91521.0,0.00045881]
[1745349354027,0.0462,91522.0,91521.0,0.00045881]
[1745349354272,0.15995594,91522.0,91521.0,0.00045881]
[1745349355295,0.16095594,91522.0,91521.0,0.00045881]
[1745349356120,0.16195594,91522.0,91521.0,0.00145881]
[1745349356555,0.25611594,91522.0,91521.0,0.00145881]
[1745349358634,0.96664181,91522.0,91521.0,0.00145881]
[1745349358827,0.87708348,91522.0,91521.0,0.00145881]
[1745349361848,1.28908348,91522.0,91521.0,0.00145881]
[1745349362641,1.05601594,91522.0,91521.0,0.00145881]
[1745349362837,0.96191594,91522.0,91521.0,0.00145881]
[1745349363439,0.52775594,91522.0,91521.0,0.00145881]
[1745349366481,0.52775594,91522.0,91516.0,0.0803964]
[1745349366733,0.11375594,91521.0,91516.0,0.00045446]
[1745349367872,0.16165594,91521.0,91516.0,0.00145446]
[1745349370911,0.11375594,91521.0,91516.0,0.00145446]
[1745349371118,0.11475594,91521.0,91516.0,0.00145446]
[1745349372466,0.55853863,91517.0,91516.0,0.00145446]
[1745349372679,0.73423542,91517.0,91516.0,0.00145446]
[1745349372880,1.19713542,91517.0,91516.0,0.00145446]
[1745349373080,1.29713542,91517.0,91516.0,0.00145446]
[1745349373703,1.29813542,91517.0,91516.0,0.00245446]
[1745349374067,1.29713542,91517.0,91516.0,0.00045446]
[1745349374447,1.30913542,91517.0,91516.0,0.00145446]
[1745349375069,1.30313542,91517.0,91516.0,0.00045446]
[1745349375409,1.31113542,91517.0,91516.0,0.00145446]
[1745349375842,1.30513542,91517.0,91516.0,0.00145446]
[1745349376231,1.31313542,91517.0,91516.0,0.00145446]
[1745349382222,1.03015594,91517.0,91516.0,0.00145446]
[1745349382387,0.66491594,91517.0,91516.0,0.00145446]
[1745349382588,0.32491594,91517.0,91516.0,0.00145446]
[1745349383091,0.23075594,91517.0,91516.0,0.00145446]
[1745349383433,0.57075594,91517.0,91516.0,0.00145446]
[1745349383832,0.23075594,91517.0,91516.0,0.00145446]
[1745349384601,0.22275594,91517.0,91516.0,0.00045446]
[1745349385032,0.22875594,91517.0,91516.0,0.00145446]
[1745349385665,0.22075594,91517.0,91516.0,0.00145446]
[1745349385872,0.22675594,91517.0,91516.0,0.00145446]
[1745349386282,0.22075594,91517.0,91516.0,0.00145446]
[1745349386913,0.22775594,91517.0,91516.0,0.00145446]
[1745349390235,0.33258519,91517.0,91516.0,0.00145446]
[1745349390440,0.83489457,91517.0,91516.0,0.00145446]
[1745349390820,0.83389457,91517.0,91516.0,0.00145446]
[1745349391025,1.39509201,91517.0,91516.0,0.00145446]
[1745349393063,1.44509201,91517.0,91516.0,0.00145446]
[1745349393462,1.55884406,91517.0,91516.0,0.00145446]
[1745349393700,1.44509201,91517.0,91516.0,0.00145446]
[1745349394448,1.35613542,91517.0,91516.0,0.00145446]
[1745349412804,1.29589457,91517.0,91516.0,0.00145446]
[1745349413330,1.39005457,91517.0,91516.0,0.00145446]
[1745349418049,1.40459542,91517.0,91516.0,0.00145446]
[1745349418263,1.51834747,91517.0,91516.0,0.00145446]
[1745349420723,1.40459542,91517.0,91516.0,0.00145446]
[1745349422604,1.4122639,91517.0,91516.0,0.00145446]
[1745349423195,1.4576639,91517.0,91516.0,0.00145446]
[1745349435921,1.4586639,91517.0,91516.0,0.00145446]
[1745349436140,0.01092967,91494.0,91484.0,0.000424]
[1745349436363,0.01092932,91497.0,91484.0,0.00087762]
[1745349436364,0.20787594,91493.0,91484.0,0.00087762]
[1745349436729,0.21858052,91493.0,91484.0,0.00087762]
[1745349437897,0.21958052,91493.0,91484.0,0.00287762]
[1745349438076,0.22058052,91493.0,91484.0,0.00287762]
[1745349438698,0.22875584,91493.0,91484.0,0.00287762]
[1745349441136,0.22875584,91493.0,91486.0,0.26531218]
[1745349441341,0.22875584,91493.0,91487.0,0.21861029]
[1745349441552,0.22875584,91493.0,91492.0,0.21859834]
[1745349441553,0.01017532,91493.0,91492.0,0.21859834]
[1745349441758,0.01017532,91493.0,91492.0,0.31259834]
[1745349442165,0.00817532,91493.0,91492.0,0.31259834]
[1745349442366,0.00917532,91493.0,91492.0,0.31259834]
[1745349442545,0.002,91493.0,91492.0,0.31259834]
[1745349442746,0.0103174,91493.0,91492.0,0.31259834]
[1745349442952,0.002,91493.0,91492.0,0.31259834]
[1745349443157,0.003,91493.0,91492.0,0.31359834]
[1745349443610,0.3604,91526.0,91515.0,0.31254189]
[1745349443831,0.21375594,91516.0,91515.0,0.31254271]
[1745349444960,0.21375594,91516.0,91515.0,0.31299633]
[1745349445184,0.102,91516.0,91515.0,0.31399633]
[1745349445443,0.102,91516.0,91515.0,0.31299633]
[1745349445865,0.11222243,91516.0,91515.0,0.31399633]
[1745349446096,0.11222243,91516.0,91515.0,0.31299633]
[1745349446528,0.11422243,91516.0,91515.0,0.31399633]
[1745349446926,0.11222243,91516.0,91515.0,0.31399633]
[1745349447141,0.11,91516.0,91515.0,0.31499633]
[1745349447349,0.01,91516.0,91515.0,0.31499633]
[1745349447565,0.05,91517.0,91515.0,0.31299633]
[1745349447764,0.05,91517.0,91516.0,0.00218511]
[1745349448176,0.05,91517.0,91515.0,0.31499633]
[1745349448177,0.05,91517.0,91515.0,0.31399633]
[1745349448381,0.0008492,91535.0,91534.0,0.21849804]
[1745349448587,0.0008492,91535.0,91534.0,0.2736827]
[1745349448788,0.0008492,91535.0,91534.0,0.053]
[1745349449017,0.0008492,91535.0,91534.0,0.0467]
[1745349449413,0.00918061,91535.0,91534.0,0.26519804]
[1745349449716,0.0048492,91535.0,91534.0,0.26619804]
[1745349450264,0.0088492,91535.0,91534.0,0.26719804]
[1745349450698,0.0008492,91535.0,91534.0,0.26519804]
[1745349450917,0.0038492,91535.0,91534.0,0.26719804]
[1745349451130,0.0058492,91535.0,91534.0,0.26719804]
[1745349451352,0.0028492,91535.0,91534.0,0.26619804]
[1745349451557,0.0048492,91535.0,91534.0,0.26619804]
[1745349451798,0.0078492,91535.0,91534.0,0.26619804]
[1745349452829,0.0048492,91535.0,91534.0,0.26619804]
[1745349453258,0.0088492,91535.0,91534.0,0.26719804]
[1745349453660,0.0008492,91535.0,91534.0,0.26619804]
[1745349453908,0.0008492,91535.0,91534.0,0.26719804]
[1745349454145,0.0058492,91535.0,91534.0,0.26719804]
[1745349454332,0.0048492,91535.0,91534.0,0.26719804]
[1745349454543,0.01485901,91535.0,91534.0,0.26619804]
[1745349454766,0.0028492,91535.0,91534.0,0.26619804]
[1745349454997,0.0068492,91535.0,91534.0,0.0487]
[1745349455228,0.0078492,91535.0,91534.0,0.0487]
[1745349456036,0.0038492,91535.0,91534.0,0.0477]
[1745349456485,0.0068492,91535.0,91534.0,0.0487]
[1745349456686,0.0038492,91535.0,91534.0,0.26719804]
[1745349456851,0.0028492,91535.0,91534.0,0.26619804]
[1745349457049,0.0028492,91535.0,91534.0,0.26719804]
[1745349457050,0.0038492,91535.0,91534.0,0.26719804]
[1745349457456,0.0058492,91535.0,91534.0,0.26719804]
[1745349457652,0.0028492,91535.0,91534.0,0.26619804]
[1745349457864,0.0058492,91535.0,91534.0,0.26719804]
[1745349458282,0.0038492,91535.0,91534.0,0.26719804]
[1745349458482,0.0058492,91535.0,91534.0,0.26719804]
[1745349458897,0.01416193,91535.0,91534.0,0.26719804]
[1745349459104,0.0028492,91535.0,91534.0,0.26619804]
[1745349459331,0.0028492,91535.0,91534.0,0.26719804]
[1745349459560,0.0068492,91535.0,91534.0,0.26719804]
[1745349459906,0.0008492,91535.0,91534.0,0.26619804]
[1745349460071,0.0018492,91535.0,91534.0,0.26719804]
[1745349460283,0.0038492,91535.0,91534.0,0.26719804]
[1745349460721,0.0058492,91535.0,91534.0,0.26719804]
[1745349461192,0.0028492,91535.0,91534.0,0.26619804]
[1745349462176,0.0008492,91535.0,91534.0,0.26619804]
[1745349462396,0.0008492,91535.0,91534.0,0.26519804]
[1745349462602,0.0038492,91535.0,91534.0,0.26619804]
[1745349462813,0.01215953,91535.0,91534.0,0.26619804]
[1745349463164,0.0038492,91535.0,91534.0,0.26619804]
[1745349463421,0.0058492,91535.0,91534.0,0.001]
[1745349463642,0.12786311,91535.0,91534.0,0.001]
[1745349463854,0.17566311,91535.0,91534.0,0.001]
[1745349464451,0.27566311,91535.0,91534.0,0.001]
[1745349465069,0.27166311,91535.0,91534.0,0.001]
[1745349466268,0.26866311,91535.0,91519.0,0.21852945]
[1745349466452,0.1,91528.0,91519.0,0.21852945]
[1745349466590,0.11375594,91527.0,91521.0,0.21852903]
[1745349467709,0.11375594,91527.0,91519.0,0.21853385]
[1745349467982,0.11375594,91527.0,91524.0,0.21852036]
[1745349468190,0.11575594,91527.0,91524.0,0.21852036]
[1745349468341,0.11575594,91527.0,91524.0,0.21852191]
[1745349468760,0.11475594,91527.0,91524.0,0.21852191]
[1745349468954,0.11475594,91527.0,91525.0,0.2185185]
[1745349469162,0.11375594,91527.0,91524.0,0.21852177]
[1745349469417,0.11375594,91527.0,91522.0,0.21852631]
[1745349469562,0.11575594,91527.0,91521.0,0.2185287]
[1745349469960,0.11375594,91527.0,91521.0,0.2185287]
[1745349470143,0.11575594,91527.0,91522.0,0.2185256]
[1745349470341,0.11675594,91527.0,91524.0,0.001]
[1745349470801,0.11775594,91527.0,91524.0,0.21952067]
[1745349470976,0.11375594,91527.0,91524.0,0.21852067]
[1745349471190,0.11375594,91527.0,91523.0,0.21852207]
[1745349471394,0.11775594,91527.0,91523.0,0.21852207]
[1745349471555,0.11575594,91527.0,91523.0,0.21852207]
[1745349471770,0.11775594,91527.0,91523.0,0.21852207]
[1745349472378,0.11575594,91527.0,91523.0,0.21852207]
[1745349472888,0.11875594,91527.0,91524.0,0.001]
[1745349473087,0.11675594,91527.0,91524.0,0.001]
[1745349473295,0.11575594,91527.0,91523.0,0.21852207]
[1745349473496,0.11875594,91527.0,91523.0,0.21952207]
[1745349473966,0.11575594,91527.0,91523.0,0.21852207]
[1745349474176,0.002,91527.0,91523.0,0.21736424]
[1745349474386,0.005,91527.0,91524.0,0.001]
[1745349474586,0.005,91527.0,91524.0,0.21952164]
[1745349474755,0.005,91527.0,91524.0,0.001]
[1745349476078,0.05490717,91535.0,91516.0,0.21853999]
[1745349476286,0.005,91527.0,91523.0,0.001]
[1745349476864,0.002,91527.0,91520.0,0.2185313]
[1745349477028,0.003,91527.0,91524.0,0.001]
[1745349477610,0.11375594,91526.0,91515.0,0.21899592]
[1745349477832,0.11375594,91526.0,91523.0,0.001]
[1745349478808,0.11375594,91526.0,91510.0,0.25352473]
[1745349478809,0.11375594,91526.0,91519.0,0.21853286]
[1745349479017,0.11375594,91526.0,91519.0,0.21898356]
[1745349479246,0.11375594,91526.0,91524.0,0.001]
[1745349479872,0.11375594,91526.0,91519.0,0.21898235]
[1745349480103,0.11675594,91526.0,91519.0,0.21998235]
[1745349480309,0.11675594,91526.0,91519.0,0.0014507]
[1745349480532,0.11475594,91526.0,91519.0,0.0004507]
[1745349480948,0.11775594,91526.0,91524.0,0.001]
[1745349481298,0.11975594,91526.0,91524.0,0.001]
[1745349482027,0.11675594,91526.0,91519.0,0.21898389]
[1745349482523,0.11575594,91526.0,91519.0,0.21998389]
[1745349482823,0.11675594,91526.0,91519.0,0.21998389]
[1745349483847,0.11675594,91526.0,91519.0,0.0014507]
[1745349484056,0.11675594,91526.0,91518.0,0.21853623]
[1745349484454,0.11675594,91526.0,91516.0,0.21853871]
[1745349484678,0.11675594,91526.0,91517.0,0.2185384]
[1745349485294,0.11675594,91526.0,91518.0,0.21853601]
[1745349485607,0.11375594,91526.0,91519.0,0.21853294]
[1745349485996,0.11575594,91526.0,91519.0,0.21853294]
[1745349486607,0.11375594,91526.0,91519.0,0.21853294]
[1745349486965,0.11675594,91526.0,91519.0,0.21953294]
[1745349487429,0.11675594,91526.0,91519.0,0.001]
[1745349487798,0.11675594,91526.0,91519.0,0.19768024]
[1745349489824,0.11675594,91526.0,91519.0,0.001]
[1745349490229,0.43988292,91522.0,91519.0,0.001]
[1745349490570,0.73222825,91520.0,91519.0,0.001]
[1745349490697,0.83222825,91520.0,91519.0,0.001]
[1745349491350,0.8176874,91520.0,91519.0,0.001]
[1745349491667,0.34,91516.0,91514.0,0.00046141]
[1745349492026,0.59905594,91515.0,91514.0,0.00046141]
[1745349492229,0.81759934,91515.0,91514.0,0.00046141]
[1745349492450,0.59905594,91515.0,91514.0,0.00046141]
[1745349493570,0.60605594,91515.0,91514.0,0.00046141]
[1745349493766,0.61105594,91515.0,91514.0,0.00146141]
[1745349494023,0.61679671,91515.0,91514.0,0.00046141]
[1745349494771,0.60979671,91515.0,91514.0,0.00046141]
[1745349495401,0.61579671,91515.0,91514.0,0.00146141]
[1745349495846,0.60979671,91515.0,91514.0,0.00046141]
[1745349496048,0.61679671,91515.0,91514.0,0.00146141]
[1745349496266,0.62279671,91515.0,91514.0,0.00146141]
[1745349496667,0.61579671,91515.0,91514.0,0.00146141]
[1745349497852,0.62379671,91515.0,91514.0,0.00146141]
[1745349501521,0.34,91514.0,91496.0,0.19672991]
[1745349501728,0.1,91502.0,91496.0,0.19672991]
[1745349502789,0.1,91502.0,91496.0,0.19772991]
[1745349502965,0.10833089,91502.0,91496.0,0.19772991]
[1745349503268,0.10933089,91502.0,91496.0,0.19772991]
[1745349503422,0.10933089,91502.0,91496.0,0.001]
[1745349503635,0.0464,91500.0,91496.0,0.001]
[1745349503841,0.11375594,91499.0,91496.0,0.001]
[1745349504114,0.11375594,91499.0,91495.0,0.0001393]
[1745349504571,0.11375594,91499.0,91496.0,0.001]
[1745349504572,0.1,91498.0,91496.0,0.001]
[1745349504807,0.37874234,91497.0,91496.0,0.001]
[1745349505032,0.16015594,91497.0,91496.0,0.001]
[1745349505244,0.47874444,91497.0,91496.0,0.001]
[1745349505666,0.43234444,91497.0,91495.0,0.0011393]
[1745349505879,0.0464,91496.0,91495.0,0.0011393]
[1745349506146,0.26015594,91496.0,91495.0,0.0011393]
[1745349506378,0.47874473,91496.0,91495.0,0.0001393]
[1745349506715,0.57282473,91496.0,91495.0,0.0001393]
[1745349507162,0.35423594,91496.0,91495.0,0.0001393]
[1745349507367,0.57282473,91496.0,91495.0,0.0001393]
[1745349507727,0.35423594,91496.0,91495.0,0.0001393]
[1745349507951,0.35923594,91496.0,91495.0,0.0011393]
[1745349508357,0.57782473,91496.0,91495.0,0.0001393]
[1745349508540,0.58382473,91496.0,91495.0,0.0011393]
[1745349508869,0.37123594,91496.0,91495.0,0.0011393]
[1745349509083,0.27715594,91496.0,91495.0,0.0011393]
[1745349510364,0.27115594,91496.0,91495.0,0.0011393]
[1745349510871,0.26715594,91496.0,91495.0,0.0001393]
[1745349511081,0.27315594,91496.0,91495.0,0.0011393]
[1745349512870,0.49174473,91496.0,91495.0,0.0011393]
[1745349513035,0.27315594,91496.0,91495.0,0.0011393]
[1745349514985,0.49174473,91496.0,91495.0,0.0011393]
[1745349515752,0.27315594,91496.0,91495.0,0.0011393]
[1745349517113,0.61315594,91496.0,91495.0,0.0011393]
[1745349517320,0.83174473,91496.0,91495.0,0.0011393]
[1745349518031,0.82474473,91496.0,91495.0,0.0011393]
[1745349518238,0.83328558,91496.0,91495.0,0.0001393]
[1745349518436,0.88708558,91496.0,91495.0,0.0001393]
[1745349518650,0.89408558,91496.0,91495.0,0.0011393]
[1745349519064,1.344816,91496.0,91495.0,0.0011393]
[1745349520898,1.438936,91496.0,91495.0,0.0011393]
[1745349522520,0.047,91485.0,91461.0,0.0004241]
[1745349522764,0.1,91480.0,91477.0,0.00013894]
[1745349522977,0.34,91478.0,91477.0,0.00013894]
[1745349523179,0.45375594,91478.0,91477.0,0.00013894]
[1745349523818,0.4620395,91478.0,91477.0,0.00013894]
[1745349524169,0.4640395,91478.0,91477.0,0.00113894]
[1745349524587,0.5140395,91478.0,91477.0,0.00113894]
[1745349526815,0.52503305,91478.0,91477.0,0.00113894]
[1745349532129,0.47803305,91478.0,91477.0,0.00113894]
[1745349539126,0.1270395,91478.0,91477.0,0.19790971]
[1745349539353,0.01328356,91478.0,91477.0,0.19890971]
[1745349539556,0.01328356,91478.0,91477.0,0.20109571]
[1745349540292,0.01328356,91478.0,91477.0,0.00213894]
[1745349548833,0.1270395,91478.0,91477.0,0.00213894]
[1745349549030,0.1740395,91478.0,91477.0,0.00213894]
[1745349561910,0.1750395,91478.0,91461.0,0.17493795]
[1745349562264,0.11375594,91477.0,91462.0,0.1771225]
[1745349562876,0.11375594,91477.0,91463.0,0.17493312]
[1745349563094,0.11375594,91477.0,91462.0,0.17493221]
[1745349563334,0.11375594,91477.0,91466.0,0.17492788]
[1745349563538,0.11375594,91477.0,91467.0,0.00218635]
[1745349563742,0.11375594,91477.0,91467.0,0.17711235]
[1745349563961,0.11375594,91477.0,91463.0,0.17493268]
[1745349564136,0.11575594,91477.0,91464.0,0.00218635]
[1745349564706,0.11575594,91477.0,91466.0,0.17492761]
[1745349564952,0.11575594,91477.0,91467.0,0.00218635]
[1745349565695,0.11575594,91477.0,91467.0,0.00318635]
[1745349565883,0.11675594,91477.0,91467.0,0.00318635]
[1745349566902,0.11675594,91477.0,91476.0,0.17490926]
[1745349566903,0.003,91477.0,91476.0,0.17490926]
[1745349567107,0.003,91477.0,91476.0,0.17709527]
[1745349567512,0.003,91477.0,91476.0,0.18339527]